[Event "Titled Tuesday Blitz November 22 Late 2022"]
[White "Clawitter, Craig"]
[Black "Lewtak, Damian"]
[WhiteFideId "2023105"]
[BlackFideId "1141724"]
[WhiteElo "2255"]
[BlackElo "2329"]
[Result "0-1"]
[Round "04"]
[TimeControl "180+1"]
[Date "2022.11.23"]
[WhiteClock "0:00:10"]
[BlackClock "0:00:52"]

1. e4 {[%clk 0:02:58]}  c5 {[%clk 0:02:59]} 2. Nf3 {[%clk 0:02:57]}  d6 {[%clk 0:02:58]} 3. d4 {[%clk 0:02:57]}  cxd4 {[%clk 0:02:58]} 4. Nxd4 {[%clk 0:02:58]}  Nf6 {[%clk 0:02:58]} 5. Nc3 {[%clk 0:02:59]}  Nc6 {[%clk 0:02:58]} 6. Bc4 {[%clk 0:02:58]}  Qb6 {[%clk 0:02:56]} 7. Nb3 {[%clk 0:02:56]}  e6 {[%clk 0:02:51]} 8. Bf4 {[%clk 0:02:53]}  Ne5 {[%clk 0:02:49]} 9. Be2 {[%clk 0:02:53]}  Bd7 {[%clk 0:02:48]} 10. Be3 {[%clk 0:02:51]}  Qc7 {[%clk 0:02:48]} 11. f4 {[%clk 0:02:51]}  Nc4 {[%clk 0:02:47]} 12. Bxc4 {[%clk 0:02:51]}  Qxc4 {[%clk 0:02:48]} 13. Qf3 {[%clk 0:02:51]}  d5 {[%clk 0:02:46]} 14. Bd4 {[%clk 0:02:09]}  Bb4 {[%clk 0:02:32]} 15. exd5 {[%clk 0:01:54]}  Nxd5 {[%clk 0:02:20]} 16. O-O-O {[%clk 0:01:50]}  Bxc3 {[%clk 0:02:07]} 17. Bxc3 {[%clk 0:01:46]}  Nxc3 {[%clk 0:01:57]} 18. Qxc3 {[%clk 0:01:40]}  Qxc3 {[%clk 0:01:55]} 19. bxc3 {[%clk 0:01:41]}  Bc6 {[%clk 0:01:56]} 20. Rd2 {[%clk 0:01:25]}  Rd8 {[%clk 0:01:52]} 21. Rxd8+ {[%clk 0:01:20]}  Kxd8 {[%clk 0:01:53]} 22. Rd1+ {[%clk 0:01:20]}  Ke7 {[%clk 0:01:52]} 23. g3 {[%clk 0:01:18]}  h5 {[%clk 0:01:52]} 24. Na5 {[%clk 0:01:15]}  h4 {[%clk 0:01:51]} 25. Nxc6+ {[%clk 0:01:09]}  bxc6 {[%clk 0:01:52]} 26. g4 {[%clk 0:01:00]}  h3 {[%clk 0:01:51]} 27. Rd3 {[%clk 0:00:59]}  Rh4 {[%clk 0:01:50]} 28. Rg3 {[%clk 0:00:59]}  Kf6 {[%clk 0:01:51]} 29. Kd2 {[%clk 0:00:57]}  g5 {[%clk 0:01:48]} 30. Ke3 {[%clk 0:00:54]}  gxf4+ {[%clk 0:01:34]} 31. Kxf4 {[%clk 0:00:54]}  Kg6 {[%clk 0:01:34]} 32. Ke5 {[%clk 0:00:50]}  Kg5 {[%clk 0:01:24]} 33. Kd6 {[%clk 0:00:42]}  Rxg4 {[%clk 0:01:03]} 34. Rxg4+ {[%clk 0:00:34]}  Kxg4 {[%clk 0:01:04]} 35. Kxc6 {[%clk 0:00:34]}  f5 {[%clk 0:01:04]} 36. Kd6 {[%clk 0:00:28]}  f4 {[%clk 0:01:04]} 37. c4 {[%clk 0:00:28]}  f3 {[%clk 0:01:04]} 38. c5 {[%clk 0:00:29]}  f2 {[%clk 0:01:05]} 39. c6 {[%clk 0:00:29]}  f1=Q {[%clk 0:01:05]} 40. c7 {[%clk 0:00:30]}  Qd1+ {[%clk 0:01:06]} 41. Kxe6 {[%clk 0:00:30]}  Qxc2 {[%clk 0:01:05]} 42. Kd7 {[%clk 0:00:30]}  Qd3+ {[%clk 0:01:06]} 43. Kc6 {[%clk 0:00:28]}  Qc4+ {[%clk 0:01:04]} 44. Kb7 {[%clk 0:00:28]}  Qb5+ {[%clk 0:01:03]} 45. Kxa7 {[%clk 0:00:22]}  Qc6 {[%clk 0:01:03]} 46. Kb8 {[%clk 0:00:22]}  Qb6+ {[%clk 0:01:03]} 47. Kc8 {[%clk 0:00:21]}  Kf5 {[%clk 0:01:03]} 48. a4 {[%clk 0:00:21]}  Ke6 {[%clk 0:01:02]} 49. a5 {[%clk 0:00:21]}  Qxa5 {[%clk 0:01:02]} 50. Kb7 {[%clk 0:00:20]}  Qb5+ {[%clk 0:01:02]} 51. Ka8 {[%clk 0:00:17]}  Qa4+ {[%clk 0:00:58]} 52. Kb8 {[%clk 0:00:17]}  Qb3+ {[%clk 0:00:57]} 53. Ka7 {[%clk 0:00:17]}  Qa2+ {[%clk 0:00:57]} 54. Kb7 {[%clk 0:00:17]}  Qb2+ {[%clk 0:00:53]} 55. Ka7 {[%clk 0:00:15]}  Kd7 {[%clk 0:00:53]} 56. c8=Q+ {[%clk 0:00:11]}  Kxc8 {[%clk 0:00:52]} 57. Ka8 {[%clk 0:00:10]}  Qa2# {[%clk 0:00:52]} 0-1


[Site "https://www.chess.com"]

[Event "Titled Tuesday Blitz November 22 Late 2022"]
[White "Czopor, Maciej"]
[Black "Svane, Rasmus"]
[WhiteFideId "21805431"]
[BlackFideId "4657101"]
[WhiteElo "2324"]
[BlackElo "2674"]
[Result "0-1"]
[Round "04"]
[TimeControl "180+1"]
[Date "2022.11.22"]
[WhiteClock "0:00:03"]
[BlackClock "0:00:39"]

1. b3 {[%clk 0:02:57]}  d5 {[%clk 0:02:59]} 2. Bb2 {[%clk 0:02:57]}  Bf5 {[%clk 0:02:59]} 3. Nf3 {[%clk 0:02:54]}  h6 {[%clk 0:02:59]} 4. e3 {[%clk 0:02:54]}  e6 {[%clk 0:03:00]} 5. g3 {[%clk 0:02:53]}  Nf6 {[%clk 0:03:00]} 6. Bg2 {[%clk 0:02:53]}  Be7 {[%clk 0:02:57]} 7. O-O {[%clk 0:02:53]}  O-O {[%clk 0:02:57]} 8. d3 {[%clk 0:02:53]}  a5 {[%clk 0:02:57]} 9. a3 {[%clk 0:02:53]}  Re8 {[%clk 0:02:55]} 10. Nbd2 {[%clk 0:02:49]}  Bh7 {[%clk 0:02:56]} 11. Qe2 {[%clk 0:02:46]}  c5 {[%clk 0:02:56]} 12. e4 {[%clk 0:02:46]}  Nc6 {[%clk 0:02:56]} 13. Rfe1 {[%clk 0:02:39]}  a4 {[%clk 0:02:56]} 14. Ne5 {[%clk 0:02:24]}  axb3 {[%clk 0:02:51]} 15. cxb3 {[%clk 0:02:22]}  Qc7 {[%clk 0:02:49]} 16. f4 {[%clk 0:02:16]}  Qb6 {[%clk 0:02:48]} 17. Kh1 {[%clk 0:02:08]}  Nd4 {[%clk 0:02:45]} 18. Bxd4 {[%clk 0:02:05]}  cxd4 {[%clk 0:02:45]} 19. b4 {[%clk 0:02:03]}  Bf8 {[%clk 0:02:37]} 20. g4 {[%clk 0:01:47]}  Bd6 {[%clk 0:02:30]} 21. Nec4 {[%clk 0:01:21]}  dxc4 {[%clk 0:02:26]} 22. Nxc4 {[%clk 0:01:22]}  Qd8 {[%clk 0:02:26]} 23. Nxd6 {[%clk 0:01:14]}  Qxd6 {[%clk 0:02:26]} 24. e5 {[%clk 0:01:15]}  Qe7 {[%clk 0:02:26]} 25. exf6 {[%clk 0:01:14]}  Qxf6 {[%clk 0:02:26]} 26. Qe5 {[%clk 0:01:02]}  Ra7 {[%clk 0:01:57]} 27. Qxf6 {[%clk 0:00:44]}  gxf6 {[%clk 0:01:58]} 28. Be4 {[%clk 0:00:44]}  Rea8 {[%clk 0:01:55]} 29. Bxh7+ {[%clk 0:00:43]}  Kxh7 {[%clk 0:01:56]} 30. Re4 {[%clk 0:00:39]}  Rxa3 {[%clk 0:01:51]} 31. Rxa3 {[%clk 0:00:40]}  Rxa3 {[%clk 0:01:51]} 32. Rxd4 {[%clk 0:00:40]}  Kg6 {[%clk 0:01:52]} 33. Kg2 {[%clk 0:00:36]}  Ra2+ {[%clk 0:01:42]} 34. Kg3 {[%clk 0:00:36]}  Rd2 {[%clk 0:01:39]} 35. Rd7 {[%clk 0:00:34]}  b5 {[%clk 0:01:38]} 36. h4 {[%clk 0:00:34]}  h5 {[%clk 0:01:36]} 37. f5+ {[%clk 0:00:26]}  exf5 {[%clk 0:01:36]} 38. gxh5+ {[%clk 0:00:26]}  Kxh5 {[%clk 0:01:35]} 39. Rxf7 {[%clk 0:00:23]}  Rxd3+ {[%clk 0:01:35]} 40. Kf4 {[%clk 0:00:23]}  Kg6 {[%clk 0:01:35]} 41. Rb7 {[%clk 0:00:13]}  Rd4+ {[%clk 0:01:35]} 42. Kf3 {[%clk 0:00:11]}  Rxb4 {[%clk 0:01:34]} 43. Rb8 {[%clk 0:00:10]}  Rb1 {[%clk 0:01:24]} 44. Kf4 {[%clk 0:00:09]}  b4 {[%clk 0:01:23]} 45. h5+ {[%clk 0:00:07]}  Kxh5 {[%clk 0:00:44]} 46. Kxf5 {[%clk 0:00:07]}  Rf1+ {[%clk 0:00:44]} 47. Ke6 {[%clk 0:00:06]}  Rf4 {[%clk 0:00:40]} 48. Rh8+ {[%clk 0:00:03]}  Kg4 {[%clk 0:00:40]} 49. Rg8+ {[%clk 0:00:02]}  Kf3 {[%clk 0:00:40]} 50. Rb8 {[%clk 0:00:03]}  Ke3 {[%clk 0:00:39]} 51. Kd5 {[%clk 0:00:03]}  Kd3 {[%clk 0:00:39]} 0-1


[Site "https://www.chess.com"]

[Event "Titled Tuesday Blitz November 22 Late 2022"]
[White "Daggupati, Balaji"]
[Black "Kulkarni, Rakesh"]
[WhiteFideId "2090759"]
[BlackFideId "5037077"]
[WhiteElo "2681"]
[BlackElo "2246"]
[Result "1-0"]
[Round "04"]
[TimeControl "180+1"]
[Date "2022.11.23"]
[WhiteClock "0:00:21"]
[BlackClock "0:00:02"]

1. e4 {[%clk 0:03:00]}  d5 {[%clk 0:02:48]} 2. exd5 {[%clk 0:03:00]}  c6 {[%clk 0:02:45]} 3. dxc6 {[%clk 0:02:56]}  Nxc6 {[%clk 0:02:42]} 4. Nf3 {[%clk 0:02:57]}  e5 {[%clk 0:02:36]} 5. Nc3 {[%clk 0:02:53]}  Nf6 {[%clk 0:02:33]} 6. d3 {[%clk 0:02:54]}  Bg4 {[%clk 0:02:27]} 7. Be2 {[%clk 0:02:52]}  Bc5 {[%clk 0:02:24]} 8. O-O {[%clk 0:02:51]}  O-O {[%clk 0:02:17]} 9. h3 {[%clk 0:02:50]}  Bh5 {[%clk 0:02:15]} 10. Bg5 {[%clk 0:02:50]}  h6 {[%clk 0:02:11]} 11. Bh4 {[%clk 0:02:35]}  Rc8 {[%clk 0:02:04]} 12. Nxe5 {[%clk 0:02:14]}  Bxe2 {[%clk 0:01:58]} 13. Qxe2 {[%clk 0:02:15]}  Nxe5 {[%clk 0:01:19]} 14. Qxe5 {[%clk 0:02:16]}  Bd4 {[%clk 0:01:20]} 15. Bxf6 {[%clk 0:02:15]}  Bxe5 {[%clk 0:01:11]} 16. Bxd8 {[%clk 0:02:15]}  Rfxd8 {[%clk 0:01:12]} 17. Rab1 {[%clk 0:01:45]}  b6 {[%clk 0:01:09]} 18. Rfc1 {[%clk 0:01:34]}  Bxc3 {[%clk 0:01:03]} 19. bxc3 {[%clk 0:01:35]}  Rxc3 {[%clk 0:01:03]} 20. Kf1 {[%clk 0:01:32]}  Rdc8 {[%clk 0:01:01]} 21. Rb2 {[%clk 0:01:31]}  Rxd3 {[%clk 0:01:01]} 22. cxd3 {[%clk 0:01:25]}  Rxc1+ {[%clk 0:01:02]} 23. Ke2 {[%clk 0:01:26]}  Kf8 {[%clk 0:01:01]} 24. Kd2 {[%clk 0:01:24]}  Rg1 {[%clk 0:00:57]} 25. g3 {[%clk 0:01:25]}  g5 {[%clk 0:00:56]} 26. Rc2 {[%clk 0:01:23]}  Ra1 {[%clk 0:00:46]} 27. Ke3 {[%clk 0:01:19]}  Kg7 {[%clk 0:00:46]} 28. Ke4 {[%clk 0:01:16]}  Kg6 {[%clk 0:00:45]} 29. d4 {[%clk 0:01:15]}  Kf6 {[%clk 0:00:40]} 30. Kd5 {[%clk 0:01:13]}  h5 {[%clk 0:00:33]} 31. Kc6 {[%clk 0:01:12]}  Ke7 {[%clk 0:00:29]} 32. Kc7 {[%clk 0:01:01]}  Ke6 {[%clk 0:00:29]} 33. Kc6 {[%clk 0:01:00]}  Ke7 {[%clk 0:00:29]} 34. Re2+ {[%clk 0:00:47]}  Kd8 {[%clk 0:00:28]} 35. d5 {[%clk 0:00:47]}  h4 {[%clk 0:00:23]} 36. gxh4 {[%clk 0:00:47]}  gxh4 {[%clk 0:00:24]} 37. Kd6 {[%clk 0:00:46]}  b5 {[%clk 0:00:23]} 38. Re7 {[%clk 0:00:46]}  Rxa2 {[%clk 0:00:22]} 39. Rxf7 {[%clk 0:00:47]}  Ra6+ {[%clk 0:00:22]} 40. Ke5 {[%clk 0:00:46]}  b4 {[%clk 0:00:22]} 41. d6 {[%clk 0:00:46]}  Ra1 {[%clk 0:00:20]} 42. Rb7 {[%clk 0:00:36]}  a5 {[%clk 0:00:20]} 43. f4 {[%clk 0:00:34]}  Re1+ {[%clk 0:00:19]} 44. Kf6 {[%clk 0:00:33]}  Rd1 {[%clk 0:00:18]} 45. Ke6 {[%clk 0:00:31]}  Re1+ {[%clk 0:00:18]} 46. Kd5 {[%clk 0:00:31]}  Rd1+ {[%clk 0:00:18]} 47. Kc6 {[%clk 0:00:30]}  Rc1+ {[%clk 0:00:18]} 48. Kb5 {[%clk 0:00:30]}  Rf1 {[%clk 0:00:15]} 49. Kxa5 {[%clk 0:00:21]}  Rxf4 {[%clk 0:00:13]} 50. Rxb4 {[%clk 0:00:22]}  Rf3 {[%clk 0:00:05]} 51. Rxh4 {[%clk 0:00:21]}  Kd7 {[%clk 0:00:06]} 52. Rh6 {[%clk 0:00:22]}  Rb3 {[%clk 0:00:03]} 53. Ka4 {[%clk 0:00:21]}  Rb1 {[%clk 0:00:04]} 54. h4 {[%clk 0:00:22]}  Rb6 {[%clk 0:00:04]} 55. h5 {[%clk 0:00:20]}  Rb1 {[%clk 0:00:04]} 56. Rg6 {[%clk 0:00:21]}  Ra1+ {[%clk 0:00:01]} 57. Kb4 {[%clk 0:00:20]}  Rh1 {[%clk 0:00:01]} 58. h6 {[%clk 0:00:20]}  Rh5 {[%clk 0:00:02]} 59. Kc4 {[%clk 0:00:20]}  Kc6 {[%clk 0:00:02]} 60. Kd4 {[%clk 0:00:19]}  Kd7 {[%clk 0:00:03]} 61. Ke4 {[%clk 0:00:20]}  Rh1 {[%clk 0:00:02]} 62. Kf4 {[%clk 0:00:20]}  Kc6 {[%clk 0:00:02]} 63. Kf5 {[%clk 0:00:21]}  Kd7 {[%clk 0:00:02]} 64. Kf6 {[%clk 0:00:21]} 1-0


[Site "https://www.chess.com"]

[Event "Titled Tuesday Blitz November 22 Late 2022"]
[White "Djordjevic, Vuk"]
[Black "Milchev, Nikolay"]
[WhiteFideId "902098"]
[BlackFideId "2906090"]
[WhiteElo "2456"]
[BlackElo "2449"]
[Result "0-1"]
[Round "04"]
[TimeControl "180+1"]
[Date "2022.11.23"]
[WhiteClock "0:00:03"]
[BlackClock "0:01:11"]

1. d4 {[%clk 0:02:59]}  Nf6 {[%clk 0:03:00]} 2. Bg5 {[%clk 0:02:59]}  c5 {[%clk 0:03:00]} 3. Bxf6 {[%clk 0:02:59]}  gxf6 {[%clk 0:03:01]} 4. dxc5 {[%clk 0:03:00]}  Qa5+ {[%clk 0:02:58]} 5. c3 {[%clk 0:03:00]}  Qxc5 {[%clk 0:02:58]} 6. g3 {[%clk 0:03:00]}  d5 {[%clk 0:02:58]} 7. Bg2 {[%clk 0:03:00]}  e6 {[%clk 0:02:59]} 8. Nf3 {[%clk 0:03:00]}  Nc6 {[%clk 0:03:00]} 9. O-O {[%clk 0:02:59]}  Be7 {[%clk 0:03:00]} 10. b4 {[%clk 0:02:52]}  Qd6 {[%clk 0:02:59]} 11. Nbd2 {[%clk 0:02:48]}  b6 {[%clk 0:02:55]} 12. e4 {[%clk 0:02:47]}  dxe4 {[%clk 0:02:51]} 13. Nxe4 {[%clk 0:02:47]}  Qxd1 {[%clk 0:02:51]} 14. Rfxd1 {[%clk 0:02:47]}  f5 {[%clk 0:02:52]} 15. Nd6+ {[%clk 0:02:47]}  Bxd6 {[%clk 0:02:52]} 16. Rxd6 {[%clk 0:02:48]}  Bb7 {[%clk 0:02:49]} 17. Rad1 {[%clk 0:02:06]}  Ne7 {[%clk 0:02:46]} 18. Rd7 {[%clk 0:01:46]}  Bd5 {[%clk 0:02:30]} 19. Rc7 {[%clk 0:01:04]}  Rc8 {[%clk 0:02:29]} 20. Rxc8+ {[%clk 0:01:02]}  Nxc8 {[%clk 0:02:29]} 21. Ne5 {[%clk 0:01:02]}  Ne7 {[%clk 0:02:20]} 22. Bxd5 {[%clk 0:00:48]}  Nxd5 {[%clk 0:02:21]} 23. Nc6 {[%clk 0:00:48]}  O-O {[%clk 0:02:12]} 24. c4 {[%clk 0:00:47]}  Nc3 {[%clk 0:02:12]} 25. Rd7 {[%clk 0:00:41]}  a5 {[%clk 0:02:07]} 26. bxa5 {[%clk 0:00:38]}  bxa5 {[%clk 0:02:08]} 27. Nxa5 {[%clk 0:00:39]}  Nxa2 {[%clk 0:02:08]} 28. c5 {[%clk 0:00:39]}  Rc8 {[%clk 0:02:08]} 29. Rd2 {[%clk 0:00:09]}  Nb4 {[%clk 0:02:04]} 30. Nb3 {[%clk 0:00:09]}  Kf8 {[%clk 0:02:01]} 31. Rd4 {[%clk 0:00:08]}  Nd5 {[%clk 0:01:58]} 32. Rh4 {[%clk 0:00:09]}  Rb8 {[%clk 0:01:56]} 33. Nd4 {[%clk 0:00:07]}  Rb1+ {[%clk 0:01:53]} 34. Kg2 {[%clk 0:00:07]}  Rc1 {[%clk 0:01:53]} 35. Rxh7 {[%clk 0:00:04]}  Rxc5 {[%clk 0:01:51]} 36. Rh8+ {[%clk 0:00:05]}  Kg7 {[%clk 0:01:51]} 37. Ra8 {[%clk 0:00:05]}  Rc4 {[%clk 0:01:51]} 38. Nf3 {[%clk 0:00:05]}  f4 {[%clk 0:01:48]} 39. g4 {[%clk 0:00:04]}  f6 {[%clk 0:01:46]} 40. Ra2 {[%clk 0:00:03]}  e5 {[%clk 0:01:45]} 41. Rd2 {[%clk 0:00:04]}  Ne7 {[%clk 0:01:38]} 42. Rd7 {[%clk 0:00:03]}  Kf7 {[%clk 0:01:39]} 43. Nd2 {[%clk 0:00:04]}  Rb4 {[%clk 0:01:34]} 44. f3 {[%clk 0:00:04]}  Ke6 {[%clk 0:01:34]} 45. Rd3 {[%clk 0:00:04]}  f5 {[%clk 0:01:33]} 46. gxf5+ {[%clk 0:00:03]}  Nxf5 {[%clk 0:01:33]} 47. Ne4 {[%clk 0:00:04]}  Rb2+ {[%clk 0:01:30]} 48. Kg1 {[%clk 0:00:04]}  Nd4 {[%clk 0:01:29]} 49. h4 {[%clk 0:00:02]}  Re2 {[%clk 0:01:24]} 50. Kf1 {[%clk 0:00:02]}  Rh2 {[%clk 0:01:24]} 51. Nf2 {[%clk 0:00:01]}  Rxh4 {[%clk 0:01:22]} 52. Kg2 {[%clk 0:00:01]}  Rh8 {[%clk 0:01:20]} 53. Ra3 {[%clk 0:00:02]}  Rg8+ {[%clk 0:01:20]} 54. Kf1 {[%clk 0:00:03]}  Rg3 {[%clk 0:01:19]} 55. Ra6+ {[%clk 0:00:03]}  Kf5 {[%clk 0:01:19]} 56. Ra8 {[%clk 0:00:03]}  Rxf3 {[%clk 0:01:19]} 57. Kg2 {[%clk 0:00:04]}  Re3 {[%clk 0:01:17]} 58. Rf8+ {[%clk 0:00:03]}  Ke6 {[%clk 0:01:18]} 59. Re8+ {[%clk 0:00:04]}  Kd7 {[%clk 0:01:17]} 60. Rh8 {[%clk 0:00:03]}  e4 {[%clk 0:01:16]} 61. Ng4 {[%clk 0:00:03]}  Re2+ {[%clk 0:01:16]} 62. Kf1 {[%clk 0:00:03]}  f3 {[%clk 0:01:17]} 63. Rh4 {[%clk 0:00:03]}  Ke6 {[%clk 0:01:12]} 64. Nf2 {[%clk 0:00:02]}  Kd5 {[%clk 0:01:12]} 65. Rh5+ {[%clk 0:00:02]}  Ke6 {[%clk 0:01:11]} 66. Rh4 {[%clk 0:00:02]}  Kf5 {[%clk 0:01:11]} 67. Rh5+ {[%clk 0:00:02]}  Kf4 {[%clk 0:01:11]} 68. Rh4+ {[%clk 0:00:03]}  Ke5 {[%clk 0:01:12]} 69. Rh5+ {[%clk 0:00:03]}  Nf5 {[%clk 0:01:12]} 70. Ng4+ {[%clk 0:00:02]}  Kf4 {[%clk 0:01:13]} 71. Nf2 {[%clk 0:00:03]}  Ng3+ {[%clk 0:01:13]} 72. Kg1 {[%clk 0:00:02]}  Nxh5 {[%clk 0:01:12]} 73. Nh3+ {[%clk 0:00:03]}  Kg3 {[%clk 0:01:11]} 74. Nf2 {[%clk 0:00:03]}  Re1# {[%clk 0:01:11]} 0-1


[Site "https://www.chess.com"]

[Event "Titled Tuesday Blitz November 22 Late 2022"]
[White "Fernandez Guillen, Ernesto J."]
[Black "Aguilar, Juan"]
[WhiteFideId "3512428"]
[BlackFideId "3800091"]
[WhiteElo "2450"]
[BlackElo "2494"]
[Result "1-0"]
[Round "04"]
[TimeControl "180+1"]
[Date "2022.11.23"]
[WhiteClock "0:00:05"]
[BlackClock "0:00:02"]

1. e4 {[%clk 0:03:00]}  c5 {[%clk 0:02:59]} 2. Nf3 {[%clk 0:02:58]}  d6 {[%clk 0:03:00]} 3. d4 {[%clk 0:02:58]}  cxd4 {[%clk 0:03:00]} 4. Nxd4 {[%clk 0:02:59]}  Nf6 {[%clk 0:03:00]} 5. Nc3 {[%clk 0:02:59]}  a6 {[%clk 0:03:00]} 6. Bc4 {[%clk 0:02:59]}  e6 {[%clk 0:03:00]} 7. Bb3 {[%clk 0:02:59]}  b5 {[%clk 0:03:00]} 8. f3 {[%clk 0:02:59]}  Be7 {[%clk 0:02:58]} 9. Be3 {[%clk 0:02:59]}  O-O {[%clk 0:02:57]} 10. Qd2 {[%clk 0:02:57]}  Bd7 {[%clk 0:02:55]} 11. g4 {[%clk 0:02:56]}  Nc6 {[%clk 0:02:54]} 12. g5 {[%clk 0:02:55]}  Nxd4 {[%clk 0:02:46]} 13. Qxd4 {[%clk 0:02:50]}  Nh5 {[%clk 0:02:43]} 14. Qd2 {[%clk 0:02:40]}  b4 {[%clk 0:02:33]} 15. Ne2 {[%clk 0:02:37]}  a5 {[%clk 0:02:26]} 16. Ng3 {[%clk 0:02:32]}  Nxg3 {[%clk 0:02:20]} 17. hxg3 {[%clk 0:02:33]}  a4 {[%clk 0:02:16]} 18. Bc4 {[%clk 0:02:32]}  Rc8 {[%clk 0:02:13]} 19. Bd3 {[%clk 0:02:32]}  a3 {[%clk 0:02:07]} 20. O-O-O {[%clk 0:01:01]}  axb2+ {[%clk 0:01:57]} 21. Kb1 {[%clk 0:01:00]}  Qa5 {[%clk 0:01:57]} 22. Rxh7 {[%clk 0:00:48]}  Ra8 {[%clk 0:01:51]} 23. Bc4 {[%clk 0:00:30]}  Kxh7 {[%clk 0:00:52]} 24. Rh1+ {[%clk 0:00:29]}  Kg6 {[%clk 0:00:49]} 25. e5 {[%clk 0:00:28]}  Qxe5 {[%clk 0:00:40]} 26. Bd3+ {[%clk 0:00:05]}  f5 {[%clk 0:00:39]} 27. gxf6+ {[%clk 0:00:06]}  Kxf6 {[%clk 0:00:38]} 28. f4 {[%clk 0:00:06]}  Qd5 {[%clk 0:00:35]} 29. Bd4+ {[%clk 0:00:04]}  Qxd4 {[%clk 0:00:27]} 30. f5 {[%clk 0:00:02]}  Qd5 {[%clk 0:00:23]} 31. Rh6+ {[%clk 0:00:02]}  Kf7 {[%clk 0:00:12]} 32. fxe6+ {[%clk 0:00:02]}  Bxe6 {[%clk 0:00:08]} 33. Bg6+ {[%clk 0:00:03]}  Kg8 {[%clk 0:00:07]} 34. Rh8+ {[%clk 0:00:03]}  Kxh8 {[%clk 0:00:06]} 35. Qh2+ {[%clk 0:00:04]}  Bh4 {[%clk 0:00:04]} 36. Qxh4+ {[%clk 0:00:04]}  Kg8 {[%clk 0:00:02]} 37. Qh7# {[%clk 0:00:05]} 1-0


[Site "https://www.chess.com"]

[Event "Titled Tuesday Blitz November 22 Late 2022"]
[White "Figorito, Nick"]
[Black "Besedes, Danilo"]
[WhiteFideId "30923689"]
[BlackFideId "946796"]
[WhiteElo "2279"]
[BlackElo "2352"]
[Result "1-0"]
[Round "04"]
[TimeControl "180+1"]
[Date "2022.11.23"]
[WhiteClock "0:00:29"]
[BlackClock "0:00:16"]

1. Nf3 {[%clk 0:03:00]}  d6 {[%clk 0:02:59]} 2. g3 {[%clk 0:03:01]}  Bg4 {[%clk 0:02:58]} 3. Bg2 {[%clk 0:03:01]}  Nc6 {[%clk 0:02:55]} 4. O-O {[%clk 0:03:01]}  e5 {[%clk 0:02:54]} 5. c4 {[%clk 0:03:01]}  Qd7 {[%clk 0:02:52]} 6. Nc3 {[%clk 0:03:01]}  h5 {[%clk 0:02:48]} 7. h4 {[%clk 0:03:00]}  Bh3 {[%clk 0:02:46]} 8. d3 {[%clk 0:02:57]}  O-O-O {[%clk 0:02:40]} 9. Rb1 {[%clk 0:02:56]}  Bxg2 {[%clk 0:02:35]} 10. Kxg2 {[%clk 0:02:56]}  f5 {[%clk 0:02:35]} 11. Bg5 {[%clk 0:02:50]}  Be7 {[%clk 0:02:28]} 12. b4 {[%clk 0:02:49]}  Bxg5 {[%clk 0:02:25]} 13. Nxg5 {[%clk 0:02:50]}  f4 {[%clk 0:02:21]} 14. b5 {[%clk 0:02:50]}  Nd4 {[%clk 0:02:19]} 15. e3 {[%clk 0:02:40]}  Ne6 {[%clk 0:02:09]} 16. exf4 {[%clk 0:02:35]}  exf4 {[%clk 0:02:07]} 17. Nxe6 {[%clk 0:02:18]}  Qxe6 {[%clk 0:02:05]} 18. Qe2 {[%clk 0:02:15]}  Qg6 {[%clk 0:02:01]} 19. Nd5 {[%clk 0:02:05]}  Kb8 {[%clk 0:02:00]} 20. Rbe1 {[%clk 0:01:48]}  Nh6 {[%clk 0:01:50]} 21. Nxf4 {[%clk 0:01:43]}  Qf7 {[%clk 0:01:36]} 22. Qxh5 {[%clk 0:01:37]}  Qf6 {[%clk 0:01:32]} 23. Qg6 {[%clk 0:01:31]}  Qc3 {[%clk 0:01:27]} 24. Nd5 {[%clk 0:01:24]}  Qd4 {[%clk 0:01:26]} 25. Qe4 {[%clk 0:01:17]}  Qc5 {[%clk 0:01:11]} 26. Qe7 {[%clk 0:01:03]}  Nf5 {[%clk 0:00:53]} 27. Qg5 {[%clk 0:01:02]}  Rdf8 {[%clk 0:00:48]} 28. Ne7 {[%clk 0:00:57]}  g6 {[%clk 0:00:25]} 29. Nxg6 {[%clk 0:00:42]}  Rfg8 {[%clk 0:00:20]} 30. Nxh8 {[%clk 0:00:31]}  Nxh4+ {[%clk 0:00:16]} 31. Qxh4 {[%clk 0:00:29]} 1-0


[Site "https://www.chess.com"]

[Event "Titled Tuesday Blitz November 22 Late 2022"]
[White "Filgueira, Hernan"]
[Black "Paravyan, David"]
[WhiteFideId "101770"]
[BlackFideId "4194985"]
[WhiteElo "2363"]
[BlackElo "2546"]
[Result "1/2-1/2"]
[Round "04"]
[TimeControl "180+1"]
[Date "2022.11.22"]
[WhiteClock "0:00:15"]
[BlackClock "0:00:04"]

1. e4 {[%clk 0:02:59]}  e5 {[%clk 0:03:00]} 2. Nf3 {[%clk 0:02:58]}  Nf6 {[%clk 0:03:00]} 3. Nc3 {[%clk 0:02:53]}  Nc6 {[%clk 0:03:00]} 4. d4 {[%clk 0:02:52]}  exd4 {[%clk 0:03:01]} 5. Nxd4 {[%clk 0:02:52]}  Nxe4 {[%clk 0:03:02]} 6. Nxe4 {[%clk 0:02:50]}  Qe7 {[%clk 0:03:02]} 7. Nb5 {[%clk 0:02:09]}  Qxe4+ {[%clk 0:03:01]} 8. Be2 {[%clk 0:02:09]}  Bb4+ {[%clk 0:03:01]} 9. c3 {[%clk 0:02:08]}  Ba5 {[%clk 0:03:01]} 10. O-O {[%clk 0:02:06]}  O-O {[%clk 0:03:02]} 11. Bf3 {[%clk 0:01:45]}  Qh4 {[%clk 0:03:00]} 12. g3 {[%clk 0:01:16]}  Qf6 {[%clk 0:02:56]} 13. a4 {[%clk 0:01:07]}  a6 {[%clk 0:02:53]} 14. Na3 {[%clk 0:01:07]}  d5 {[%clk 0:02:44]} 15. Bf4 {[%clk 0:00:56]}  Be6 {[%clk 0:02:31]} 16. Re1 {[%clk 0:00:49]}  Rad8 {[%clk 0:02:30]} 17. b4 {[%clk 0:00:43]}  Bb6 {[%clk 0:02:29]} 18. a5 {[%clk 0:00:41]}  Ba7 {[%clk 0:02:29]} 19. b5 {[%clk 0:00:26]}  axb5 {[%clk 0:02:29]} 20. Nxb5 {[%clk 0:00:26]}  Bc5 {[%clk 0:02:28]} 21. Bxc7 {[%clk 0:00:21]}  Rd7 {[%clk 0:02:22]} 22. Bb6 {[%clk 0:00:19]}  Bxb6 {[%clk 0:02:06]} 23. axb6 {[%clk 0:00:19]}  d4 {[%clk 0:01:52]} 24. Nxd4 {[%clk 0:00:15]}  Nxd4 {[%clk 0:01:51]} 25. cxd4 {[%clk 0:00:15]}  Rxd4 {[%clk 0:01:52]} 26. Qe2 {[%clk 0:00:14]}  Bc4 {[%clk 0:01:50]} 27. Qe3 {[%clk 0:00:07]}  Rd3 {[%clk 0:01:49]} 28. Qc5 {[%clk 0:00:05]}  Ba6 {[%clk 0:01:17]} 29. Rxa6 {[%clk 0:00:03]}  bxa6 {[%clk 0:01:15]} 30. b7 {[%clk 0:00:04]}  Qd6 {[%clk 0:00:20]} 31. Qxd6 {[%clk 0:00:04]}  Rxd6 {[%clk 0:00:21]} 32. Bg4 {[%clk 0:00:05]}  Rb6 {[%clk 0:00:06]} 33. Bc8 {[%clk 0:00:05]}  Rd8 {[%clk 0:00:06]} 34. Ra1 {[%clk 0:00:05]}  g6 {[%clk 0:00:02]} 35. Kg2 {[%clk 0:00:05]}  h5 {[%clk 0:00:02]} 36. Ra2 {[%clk 0:00:06]}  Kh7 {[%clk 0:00:01]} 37. h4 {[%clk 0:00:06]}  Kg8 {[%clk 0:00:01]} 38. Kg1 {[%clk 0:00:05]}  Kh7 {[%clk 0:00:01]} 39. Kg2 {[%clk 0:00:06]}  Kg8 {[%clk 0:00:02]} 40. Kg1 {[%clk 0:00:07]}  Rf8 {[%clk 0:00:02]} 41. Kg2 {[%clk 0:00:08]}  Re8 {[%clk 0:00:02]} 42. Kg1 {[%clk 0:00:09]}  Rd8 {[%clk 0:00:02]} 43. Kg2 {[%clk 0:00:09]}  Kh7 {[%clk 0:00:03]} 44. Kg1 {[%clk 0:00:10]}  Kg8 {[%clk 0:00:04]} 45. Kg2 {[%clk 0:00:11]}  Kf8 {[%clk 0:00:03]} 46. Kg1 {[%clk 0:00:12]}  Kg7 {[%clk 0:00:03]} 47. Kg2 {[%clk 0:00:13]}  Kh7 {[%clk 0:00:03]} 48. Kg1 {[%clk 0:00:14]}  Kh6 {[%clk 0:00:04]} 49. Kg2 {[%clk 0:00:15]}  Kh7 {[%clk 0:00:04]} 1/2-1/2


[Site "https://www.chess.com"]